Cogmind - Beta 14 @@@ ROGUE MODE // 2024.11.08 @ 23:26:54 Player: WazdakkaGutsmek Result: Destroyed by S-10 Pest with Light Assault Rifle Performance ------------- Evolutions (0) 0 Regions Visited (4) 800 Robots Destroyed (11) 55 Value Destroyed (343) 343 Prototype IDs (23) 460 Alien Tech Used (0) 0 Bonus (300) 300 TOTAL SCORE: 1958 Bonus ------- Aligned with FarCom 300 Cogmind --------- Core Integrity 0/250 Matter 158/300 Energy 98/100 System Corruption 2% Temperature Cool (1) Movement Walking (190) Ox1 Location -9/Mines Parts ------- > --- POWER (1) -------- (None) > --- PROPULSION (2) --- Light Treads Improved Aluminum Leg > --- UTILITY (2) ------ Large Storage Unit > --- WEAPON (2) ------- (None) > --- INVENTORY (15) --- Trap Reconfigurator PSU Rigger YOLO Cannon Peak State ------------ > --- POWER ------------ Light Nuclear Core > --- PROPULSION ------- Light Treads Light Treads > --- UTILITY ---------- Large Storage Unit > --- WEAPON ----------- Bore Cannon > --- INVENTORY -------- Trap Reconfigurator PSU Rigger YOLO Cannon [Rating: 14] Favorites ----------- Power Light Nuclear Core Engine Ion Engine Power Core Light Nuclear Core Propulsion Light Treads Treads Light Treads Leg Improved Aluminum Leg Wheel Wheel Flight Unit Flight Unit Utility Large Storage Unit Device PSU Rigger Storage Large Storage Unit Weapon EM Pulse Gun Energy Gun EM Pulse Gun Ballistic Cannon Bore Cannon Launcher Grenade Launcher Build | -11 -10 -10 -10 -9 ------- Run | Yrd Mat Min Exi Min Slots Evolved . | . . . . . Power . | . . . . . Propulsion . | . . . . . Utility . | . . . . . Weapon . | . . . . . Parts Attached 17 | . 4 5 4 4 Power 2 | . . 1 . 1 Engine 1 | . . 1 . . Core 1 | . . . . 1 Reactor . | . . . . . Propulsion 7 | . 2 2 2 1 Treads 2 | . . . 2 . Leg 1 | . . . . 1 Wheel 2 | . 2 . . . Hover . | . . . . . Flight 2 | . . 2 . . Utility 3 | . 1 . 1 1 Device 1 | . . . . 1 Storage 2 | . 1 . 1 . Processor . | . . . . . Hackware . | . . . . . Protection . | . . . . . Artifact . | . . . . . Weapon 5 | . 1 2 1 1 Energy Gun 2 | . 1 1 . . Energy Cannon . | . . . . . Ballistic Gun . | . . . . . Ballistic Cannon 2 | . . . 1 1 Launcher 1 | . . 1 . . Special Weapon . | . . . . . Impact Weapon . | . . . . . Slashing Weapon . | . . . . . Piercing Weapon . | . . . . . Special Melee Weapon . | . . . . . Unidentified Prototypes . | . . . . . Parts Lost 7 | . 1 5 . 1 Power . | . . . . . Propulsion 2 | . . 2 . . Utility . | . . . . . Weapon 5 | . 1 3 . 1 Highest Loss Streak 4 | . 1 4 . 1 To Critical Strikes . | . . . . . Average Slot Usage (%) 56 | . 76 51 38 58 Engine 2 | . 4 7 . . Core 2 | . . . . 7 Treads 12 | . . . 22 23 Leg 2 | . 3 . . 4 Wheel 8 | . 24 14 . . Flight 2 | . . 7 2 . Storage 11 | . 23 7 2 14 Energy Gun 7 | . 18 12 . . Ballistic Cannon 5 | . . . 10 8 Peak Build Rating 14 | 6 7 6 11 14 Average Rating 7 | 6 5 3 8 11 On Entrance 5 | 6 6 5 1 11 Naked Turns 15 | . . 15 . . Heaviest Build 92 | 12 92 90 29 34 Greatest Support 40 | 20 26 26 40 40 Greatest Overweight (x) 4 | . 4 3 . 1 Average Overweight (x) . | . 2 . . . Largest Inventory Capacity 25 | 8 25 25 15 15 Average Capacity 15 | 8 24 15 6 15 Most Carried 7 | 6 7 4 5 4 Average Carried 4 | 6 5 3 3 3 Final Capacity 25 | 8 25 5 15 15 Final Carried 6 | 6 4 3 4 4 Class Distribution -------------------- 100% | Mutant Dominant Class ---------------- Mutant | -10/Materials Mutant | -10/Mines Mutant | -10/Exiles Mutant | -9/Mines Resources | -11 -10 -10 -10 -9 ----------- Run | Yrd Mat Min Exi Min Matter Collected 437 | 200 25 17 98 97 Remotely . | . . . . . Salvage Created 347 | . 108 52 . 187 Parts 20 | . 6 4 . 10 Haulers Intercepted . | . . . . . Recyclers Shooed 1 | . 1 . . . Parts Field Recycled . | . . . . . Retrieved Matter . | . . . . . Parts Self-Destructed . | . . . . . Prevented . | . . . . . Kills | -11 -10 -10 -10 -9 ------- Run | Yrd Mat Min Exi Min Combat Hostiles Destroyed 14 | . 2 7 . 5 Guns 4 | . 2 2 . . Cannons 4 | . . . . 4 AOE 6 | . . 5 . 1 Classes Destroyed 5 | . 2 2 . 1 Watcher 1 | . 1 . . . Swarmer 3 | . . 3 . . Grunt 6 | . 2 . . 4 Duelist 1 | . . . . 1 Assembled 4 | . . 4 . . Best Kill Streak 4 | . 1 4 . 3 Combat Bots Only 4 | . 1 4 . 3 Max Kills in Single Turn 2 | . 1 2 . 1 Gunslinging 1 | . . 1 . . Exploded 2 | . . 2 . 1 Melee . | . . . . . Uniques/NPCs Destroyed . | . . . . . Combat | -11 -10 -10 -10 -9 -------- Run | Yrd Mat Min Exi Min Hostile Shots Fired 89 | . 10 35 . 44 Missed 35 | . 4 16 . 15 Damage Taken 998 | . 114 444 . 440 Core 251 | . 28 90 . 133 Absorbed by Shields . | . . . . . Core Remaining (%) 100 | 100 . . . . Volleys Fired 48 | . 14 8 . 26 Largest 2 | . 2 2 . 1 Hottest 90 | . 80 90 . 57 Shots Fired 62 | . 22 13 1 26 Gun 32 | . 22 10 . . Cannon 27 | . . . 1 26 Launcher 3 | . . 3 . . Special . | . . . . . Kinetic 27 | . . . 1 26 Thermal 8 | . . 8 . . Explosive 3 | . . 3 . . Electromagnetic 24 | . 22 2 . . Robot Hit Streak 5 | . 5 5 . 2 Robot Miss Streak 4 | . 2 4 . 4 Penetration Max . | . . . . . Secondary Targets 1 | . . 1 . . Max Gunslinging Chain 1 | . . 1 . . Shots Hit Robots 29 | . 15 5 . 9 Core Hits 22 | . 6 10 . 6 Critical Kills 3 | . . . . 3 Critical Parts Destroyed 3 | . . . . 3 Critical Strikes 7 | . . 1 . 6 Burn 1 | . . 1 . . Destroy 6 | . . . . 6 Melee Attacks . | . . . . . Impact . | . . . . . Slashing . | . . . . . Piercing . | . . . . . Sneak Attacks . | . . . . . Combat Hostiles . | . . . . . Follow-up Attacks . | . . . . . Damage Inflicted 736 | . 266 268 . 202 Guns 268 | . 209 59 . . Cannons 202 | . . . . 202 Explosions 266 | . 57 209 . . Melee . | . . . . . Ramming . | . . . . . Kinetic 202 | . . . . 202 Thermal 120 | . 57 63 . . Explosive 183 | . . 183 . . Electromagnetic 231 | . 209 22 . . Impact . | . . . . . Slashing . | . . . . . Piercing . | . . . . . Highest Corruption 2 | . 2 2 2 2 Average Corruption 2 | . 2 2 2 2 Corruption Purged . | . . . . . Corruption Blocked . | . . . . . Effects 9 | . . 1 3 5 Matter Fused 3 | . . 1 1 1 Heat Flow Errors 2 | . . . . 2 Energy Discharges 1 | . . . . 1 Data Loss (minor) 2 | . . . 1 1 Misfires 1 | . . . 1 . Overload Shots . | . . . . . Overflow Damage . | . . . . . Projectiles . | . . . . . Explosions . | . . . . . Melee . | . . . . . Knockbacks 2 | . . . . 2 Impact . | . . . . . Kinetic 2 | . . . . 2 Secondary . | . . . . . Self-Inflicted Damage 85 | . 28 57 . . Shots 4 | . 1 3 . . Rammed . | . . . . . Targets Rammed . | . . . . . Kicked . | . . . . . Crushed . | . . . . . Highest Temperature 293 | . 126 72 8 293 Average Temperature 98 | . 59 27 6 142 Received Heat Transfer 141 | . 48 . . 93 Siege Activations . | . . . . . Robots Corrupted . | . . . . . Combat Hostiles . | . . . . . Parts Fried 1 | . 1 . . . Impact Corruptions . | . . . . . Robots Melted . | . . . . . Combat Hostiles . | . . . . . Parts Melted . | . . . . . Heat Transferred 285 | . 50 235 . . Parts Sabotaged . | . . . . . Parts Stolen . | . . . . . Parts Stripped . | . . . . . Power Chain Reactions 2 | . 1 1 . . Alert | -11 -10 -10 -10 -9 ------- Run | Yrd Mat Min Exi Min Peak Influence 161 | . 95 161 . 138 Initial 36 | . . 36 . . Average 91 | . 51 125 . 106 Maximum Alert Level . | . . . . . Low Security (%) 100 | 100 100 100 . 100 Level 1 . | . . . . . Level 2 . | . . . . . Level 3 . | . . . . . Level 4 . | . . . . . Level 5 . | . . . . . High Security . | . . . . . Max Security . | . . . . . Squads Dispatched . | . . . . . Investigation . | . . . . . Extermination . | . . . . . Reinforcement . | . . . . . Assault . | . . . . . Garrison . | . . . . . Intercept . | . . . . . Searches Triggered . | . . . . . Construction Impeded . | . . . . . Haulers Reinforced . | . . . . . Active Scanning Responses . | . . . . . Cargo Convoy Interrupts . | . . . . . Stealth | -11 -10 -10 -10 -9 --------- Run | Yrd Mat Min Exi Min Distress Signals . | . . . . . Communications Jammed . | . . . . . Distress Signals . | . . . . . Times Spotted 31 | . 3 20 . 8 Peak Tracking Total 15 | . 2 15 . 3 Tactical Retreats 2 | . . 2 . . Traps | -11 -10 -10 -10 -9 ------- Run | Yrd Mat Min Exi Min Traps Triggered 1 | . 1 . . . Indirectly . | . . . . . Trap Hack Attempts . | . . . . . Triggered . | . . . . . Disarmed . | . . . . . Reprogrammed . | . . . . . Reused . | . . . . . Traps Extracted . | . . . . . Installed . | . . . . . Triggered . | . . . . . Objects Rigged 1 | . . . . 1 Exploded 1 | . . . . 1 Machines | -11 -10 -10 -10 -9 ---------- Run | Yrd Mat Min Exi Min Machines Disabled 2 | . 1 1 . . Max in Single Turn 1 | . 1 1 . . Machines Repaired . | . . . . . Machines Dismantled . | . . . . . Machines Sabotaged . | . . . . . Overloaded Fab Kills . | . . . . . Hacking | -11 -10 -10 -10 -9 --------- Run | Yrd Mat Min Exi Min Machines Accessed 5 | . 4 . 1 . Terminals 4 | . 4 . . . Fabricators . | . . . . . Repair Stations . | . . . . . Recycling Units . | . . . . . Scanalyzers . | . . . . . Garrison Access . | . . . . . Total Hacks 11 | . 10 . 1 . Successful 4 | . 3 . 1 . Failed 7 | . 7 . . . Catastrophic 1 | . 1 . . . Database Lockouts . | . . . . . Manual 1 | . . . 1 . Terminals 10 | . 10 . . . Fabricators . | . . . . . Repair Stations . | . . . . . Recycling Units . | . . . . . Scanalyzers . | . . . . . Garrison Access . | . . . . . Terminal Hacks 4 | . 3 . 1 . Record 1 | . 1 . . . Branch Access Points 1 | . 1 . . . Registered Prototypes 1 | . 1 . . . Derelict Proto ID Bank 1 | . . . 1 . Fabricator Hacks . | . . . . . Repair Station Hacks . | . . . . . Recycling Unit Hacks . | . . . . . Scanalyzer . | . . . . . Garrison Access Hacks . | . . . . . Unauthorized Hacks . | . . . . . Terminals . | . . . . . Fabricators . | . . . . . Repair Stations . | . . . . . Recycling Units . | . . . . . Scanalyzers . | . . . . . Garrison Access . | . . . . . Data Cores Recovered . | . . . . . Used . | . . . . . Hacking Detections 3 | . 3 . . . Full Trace Events . | . . . . . Feedback Events . | . . . . . Feedback Blocked . | . . . . . Robot Schematics Acquired . | . . . . . Robots Built . | . . . . . Authchips . | . . . . . Time . | . . . . . Total Robot Build Rating . | . . . . . Part Schematics Acquired . | . . . . . Parts Built . | . . . . . Authchips . | . . . . . Time . | . . . . . Total Part Build Rating . | . . . . . Parts Repaired . | . . . . . Time . | . . . . . Parts Recycled . | . . . . . Recycled Matter . | . . . . . Retrieved Matter . | . . . . . Retrieved Components . | . . . . . Parts Scanalyzed . | . . . . . Part Schematics Acquired . | . . . . . Parts Damaged . | . . . . . Bothacking | -11 -10 -10 -10 -9 ------------ Run | Yrd Mat Min Exi Min Used RIF Installer . | . . . . . Robots Hacked . | . . . . . Non-combat . | . . . . . Combat . | . . . . . Robot Hacks Applied . | . . . . . Relay Couplers Released . | . . . . . Fabnet Peak Effective % . | . . . . . Robots Rewired . | . . . . . Allies Hacked . | . . . . . Hacks Repelled . | . . . . . Allies | -11 -10 -10 -10 -9 -------- Run | Yrd Mat Min Exi Min Total Allies . | . . . . . Largest Group . | . . . . . Highest-Rated Group . | . . . . . Highest-Rated Ally . | . . . . . Total Orders . | . . . . . Ally Attacks . | . . . . . Total Damage . | . . . . . Kills . | . . . . . Allies Corrupted . | . . . . . Allies Melted . | . . . . . Intel | -11 -10 -10 -10 -9 ------- Run | Yrd Mat Min Exi Min Robot Analysis Total . | . . . . . Derelict Logs Recovered 1 | . . 1 . . Drone Launches . | . . . . . Drone Recoveries . | . . . . . Exploration | -11 -10 -10 -10 -9 ------------- Run | Yrd Mat Min Exi Min Turns Passed 1038 | 5 258 189 276 310 Spaces Moved 801 | 5 140 256 254 146 Core 30 | . . 30 . . Treads 230 | . . . 140 90 Legs 73 | 5 12 . . 56 Wheels 183 | . 128 55 . . Hover . | . . . . . Flight 285 | . . 171 114 . Fastest Speed 37 | 120 120 37 40 160 Average Speed 109 | 120 139 61 106 172 Slowest Speed 400 | 120 400 135 160 240 Overloaded Moves . | . . . . . Propulsion Burnouts . | . . . . . Robots Hopped 4 | . . 4 . . Cave-ins Triggered . | . . . . . Exploration Rate (%) 36 | 2 30 57 60 34 Regions Visited 4 Branch Regions 3 Pre-discovered Areas . | . . . . . Known Exits Taken 1 | . 1 . . . Unknown Exits Taken 3 | 1 . 1 1 . Scrap Searched . | . . . . . Spaces Dug . | . . . . . Terrain Destroyed 44 | . 2 20 1 21 Melee . | . . . . . Projectile 22 | . . . 1 21 AOE 22 | . 2 20 . . Terrain Rammed . | . . . . . Walls Destroyed . | . . . . . Machines Disabled . | . . . . . Actions | -11 -10 -10 -10 -9 --------- Run | Yrd Mat Min Exi Min Total 895 | 4 182 269 261 179 Wait 24 | . 20 4 . . Move 789 | 4 139 247 253 146 Hop 4 | . . 4 . . Pick Up 5 | . 1 1 3 . Fast Attach 7 | . 1 2 1 3 Attach 9 | . 3 2 3 1 Detach 1 | . . . . 1 Swap 1 | . . 1 . . Drop 6 | . 4 . 1 1 Fire 48 | . 14 8 . 26 Melee . | . . . . . Ram . | . . . . . Kick . | . . . . . Crush . | . . . . . Escape Stasis . | . . . . . Rewire . | . . . . . Trap 1 | . . . . 1 Miscellaneous . | . . . . . Route ------- -11/Scrapyard -10/Materials (discovered 2 exits: *Min x2) -10/Mines -10/Exiles -9/Mines History --------- Turn | Location | Event 1 | -11/Scrapyard | Discovered new exit (range 2) 6 | -11/Scrapyard | Entered Materials 135 | -10/Materials | Identified exit to Mines 264 | -10/Materials | Entered Mines 304 | -10/Mines | Build established: Mutant 324 | -10/Mines | Assembled infested the area 329 | -10/Mines | Assisted by a Guerilla fighting off Assembled 364 | -10/Mines | Released all parts (3) 394 | -10/Mines | Lost 4 parts (1n3w) 397 | -10/Mines | Learned Materials terminal intel 451 | -10/Mines | Deemed a non-threat by the Exiles lab entrance 451 | -10/Mines | Discovered new exit (range 5) 453 | -10/Mines | Entered Exiles 463 | -10/Exiles | Met 8R-AWN 470 | -10/Exiles | Met EX-HEX 482 | -10/Exiles | Met EX-BIN 486 | -10/Exiles | Aligned with FarCom system 486 | -10/Exiles | Given EX-Vault access code 496 | -10/Exiles | Opened EX-Vault 499 | -10/Exiles | Found YOLO Cannon 509 | -10/Exiles | Found PSU Rigger 512 | -10/Exiles | Found Trap Reconfigurator 549 | -10/Exiles | Warned to stay clear of 0b10 Research branches 594 | -10/Exiles | Met EX-DEC 717 | -10/Exiles | Discovered new exit (range 10) 729 | -10/Exiles | Stole three prototypes: Trap Reconfigurator, PSU Rigger, YOLO Cannon 729 | -10/Exiles | Entered Mines 731 | -9/Mines | Core integrity fell below 50% 910 | -9/Mines | Core integrity fell below 20% 1039 | -9/Mines | Destroyed by S-10 Pest with Light Assault Rifle Last Messages --------------- 00920_ Rigged Lgt. Nuclear Core with PSU Rigger. 00923_ Lgt. Treads severed. 00925_ Rigged Lgt. Nuclear Core explodes. 00925_ L-31 Rogue destroyed. 00929_ K-01 Serf collects debris. 00933_ Acquired Imp. Aluminum Leg. 00934_ K-01 Serf collects debris. 00951_ K-01 Serf cleans the Laser Drill. 00958_ U-05 Engineer builds a Wall. 00961_ U-05 Engineer lays Concrete. 00962_ U-05 Engineer builds a Wall. 00964_ K-01 Serf collects debris. 01001_ U-05 Engineer lays Concrete. 01003_ U-05 Engineer builds a Wall. 01004_ System corrupted: Energy discharge (-20). 01008_ U-05 Engineer lays Concrete. 01022_ T-07 Excavator is excavating. 01033_ S-10 Pest: "SECOND INTRUDER APPROACHING. ELIMINATE." 01033_ U-05 Engineer builds a Wall. Map ----- +----------------------------------------------------+ | | | | | | | | | | | | | | | | | | | | | | | | | ?????????????????????????????????????????????????? | | ?????????????????????????????????????????????????? | | ???????????????????????????????#?????????????????? | | ??????????????????############ #?????????????????? | | ???????????? #?????????????????? | | ???????????????????######s #?????????????????? | | ????????????????????????#ss## #??????????????????? | | ????????????????????????# #?##??????????????????? | | ????????????????????????# #?????????????????????? | | ?????????????????######## #?????????????????????? | | ?????????? #?????????????????????? | | ?????????????????# ###### u#?????????????????????? | | ???????????????### #????# #??##?????????????????? | | ???????????##### ##??##@ #?# #?????????????????? | | ??????????## #?## u## #??????????????????? | | ??????????# #?# # #???????????????????? | | ??????????# #??# ##????????????????????? | | ???????#### #### ##????????????????????? | | ?# ## ###???????????????????? | | ?# ### ##??????????????????? | | ???## ######????## #####??????????????? | | ?????????????????### ####???????????? | | ???????????????###### ""#???????????? | | ???????????????# " % % #???????? | | ???????????????##"# k #######???????? | | ???????????#####" % ## """ #?????????????? | | ???????????# = ##"# """ ##?????????????? | | ???????????# #### ######?## """ ##??????????????? | | ??????????????## ### #???# #???????????????? | | ?????????????## ## #??# #???????????????? | | ?????????????# ###??## ???????????????? | | ?????????????# ##???? ???????????????? | | ?????????????# #???? #???????????????? | | ?????????????# #????# ###???????????????? | | ????????????## ##?????###?????????????????? | | ????????????# #??????????????????????????? | | ????????????# #??????????????????????????? | | ????????????# #??????????????????????????? | +----------------------------------------------------+ Best States ------------- Heat Dissipation 25 Energy Generation 14 Energy Capacity 250 Matter Stores 300 Matter Capacity 300 Sight Range 16 Terrain Scan Density 10 Evasion (%) 62 Recoil Reduction 2 Item Schematics ----------------- None Robot Schematics ------------------ None Fabricated ------------ Nothing Alien Tech Used ----------------- None Achievements -------------- None Challenges ------------ None Game ------ Seed LargeMomentumKatana Manual? 0 Play Time 00:12:36 Cumulative 83.1 hours Start 2024.11.08 @ 23:13:29 End 2024.11.08 @ 23:26:54 Sessions 1 Manual Loads 0 Difficulty Rogue Special Mode None Game No. 66 Rogue 48 Adventurer 16 Explorer 2 Win Type - Total 3 Types 3/0/0/0/0/0/0/0/0 Lore% 15 Gallery% 52 Achievement% 49 Wizard Run 0 Options --------- Layout 2 ASCII 0 Keyboard 0 Movement Numpad Keybinds 1 Fullscreen 2 Font 24/Terminus Map View 50x44 Zoom Use 0% Tactical HUD 1 Map Filters NONE Filters NONE Steam 1 RUN: 7011e095-01b3-4d20-a3e8-96fcc4607df0